Cogmind - Beta 13 @@@ ROGUE MODE // 2024.06.06 @ 16:26:12 Player: Kat Result: Self-destructed Performance ------------- Evolutions (1) 500 Regions Visited (3) 600 Robots Destroyed (60) 300 Value Destroyed (1610) 1610 Prototype IDs (5) 100 Alien Tech Used (0) 0 Bonus (0) 0 TOTAL SCORE: 3110 Bonus ------- None Cogmind --------- Core Integrity 205/400 Matter 300/300 Energy 108/280 System Corruption 7% Temperature Warning (355) Movement Walking (190) Ox1 Location -9/Materials Parts ------- > --- POWER (1) -------- Cooled Ion Engine > --- PROPULSION (2) --- Aluminum Leg > --- UTILITY (4) ------ Medium Storage Unit Advanced Weight Redist. System Hardened Light Armor Plating > --- WEAPON (2) ------- Improved EM Shotgun > --- INVENTORY (10) --- Wheel Heat Sink Sensor Array Heavy EM Pulse Gun Heavy EM Pulse Gun Autogun Autogun Autogun Grenade Launcher Plasma Cutter Peak State ------------ > --- POWER ------------ Cooled Ion Engine > --- PROPULSION ------- Aluminum Leg Aluminum Leg > --- UTILITY ---------- Medium Storage Unit Advanced Weight Redist. System Advanced Weight Redist. System Hardened Light Armor Plating > --- WEAPON ----------- Light EM Pulse Cannon Light EM Pulse Cannon > --- INVENTORY -------- Wheel Heat Sink Sensor Array Heavy EM Pulse Gun Heavy EM Pulse Gun Autogun Autogun Autogun Grenade Launcher Plasma Cutter [Rating: 19] Favorites ----------- Power Light Ion Engine Engine Light Ion Engine Propulsion Aluminum Leg Leg Aluminum Leg Utility Medium Storage Unit Device Sensor Array Storage Medium Storage Unit Protection Hardened Light Armor Plating Weapon Beam Cannon Energy Gun Improved EM Shotgun Energy Cannon Beam Cannon Ballistic Gun Assault Rifle Build | -11 -10 -10 -9 ------- Run | Yrd Mat Min Mat Slots Evolved 2 | . . . 2 Power . | . . . . Propulsion . | . . . . Utility 2 | . . . 2 Weapon . | . . . . Parts Attached 48 | 6 11 1 30 Power 5 | . 2 . 3 Engine 5 | . 2 . 3 Core . | . . . . Reactor . | . . . . Propulsion 11 | 2 3 . 6 Treads . | . . . . Leg 11 | 2 3 . 6 Wheel . | . . . . Hover . | . . . . Flight . | . . . . Utility 16 | 2 4 . 10 Device 12 | 1 3 . 8 Storage 2 | 1 1 . . Processor . | . . . . Hackware . | . . . . Protection 2 | . . . 2 Artifact . | . . . . Weapon 16 | 2 2 1 11 Energy Gun 4 | . . . 4 Energy Cannon 10 | . 2 1 7 Ballistic Gun 2 | 2 . . . Ballistic Cannon . | . . . . Launcher . | . . . . Special Weapon . | . . . . Impact Weapon . | . . . . Slashing Weapon . | . . . . Piercing Weapon . | . . . . Special Melee Weapon . | . . . . Unidentified Prototypes 5 | . . . 5 Parts Lost 6 | . . . 6 Power . | . . . . Propulsion 3 | . . . 3 Utility 2 | . . . 2 Weapon 1 | . . . 1 Highest Loss Streak 4 | . . . 4 To Critical Strikes 1 | . . . 1 Average Slot Usage (%) 95 | . 96 100 94 Engine 11 | . 10 14 10 Leg 25 | . 27 28 21 Device 17 | . 14 14 22 Storage 12 | . 14 14 11 Protection 2 | . . . 6 Energy Cannon 22 | . 23 28 20 Ballistic Gun 2 | . 4 . . Naked Turns . | . . . . Heaviest Build 33 | 10 20 20 33 Greatest Support 29 | 20 20 20 29 Greatest Overweight (x) 6 | . 1 . 6 Average Overweight (x) . | . . . . Largest Inventory Capacity 10 | 8 10 10 10 Average Capacity 9 | 6 9 10 10 Most Carried 10 | 5 10 10 10 Average Carried 8 | 3 8 10 9 Final Capacity 10 | 8 10 10 10 Final Carried 10 | 4 10 10 10 Class Distribution -------------------- 89% | Mutant 10% | Scavenger-Mutant Dominant Class ---------------- Mutant | -10/Materials Mutant | -10/Mines Mutant | -9/Materials Resources | -11 -10 -10 -9 ----------- Run | Yrd Mat Min Mat Matter Collected 844 | 290 179 10 365 Remotely . | . . . . Salvage Created 2594 | 114 684 78 1718 Parts 130 | 5 32 7 86 Haulers Intercepted 4 | . 2 . 2 Recyclers Shooed 3 | . 1 . 2 Parts Field Recycled . | . . . . Retrieved Matter . | . . . . Parts Self-Destructed . | . . . . Prevented . | . . . . Kills | -11 -10 -10 -9 ------- Run | Yrd Mat Min Mat Combat Hostiles Destroyed 41 | . 11 6 24 Guns 2 | . . . 2 Cannons 32 | . 9 6 17 AOE 2 | . . . 2 Classes Destroyed 9 | 2 3 1 3 Worker 1 | . . . 1 Tunneler 1 | 1 . . . Hauler 4 | . 2 . 2 Recycler 7 | 1 1 . 5 Watcher 6 | . 3 . 3 Swarmer 6 | . . 6 . Grunt 25 | . 11 . 14 Brawler 1 | . . . 1 Sentry 9 | . . . 9 Best Kill Streak 7 | 2 3 3 7 Combat Bots Only 6 | . 3 3 6 Max Kills in Single Turn 4 | 1 1 2 4 Gunslinging . | . . . . Exploded 2 | . . . 2 Melee . | . . . . Uniques/NPCs Destroyed . | . . . . Combat | -11 -10 -10 -9 -------- Run | Yrd Mat Min Mat Hostile Shots Fired 182 | . 32 30 120 Missed 51 | . 8 13 30 Damage Taken 1774 | . 292 138 1344 Core 319 | . 84 40 195 Absorbed by Shields . | . . . . Regen/Repaired (Parts) 112 | . . . 112 Core Remaining (%) 75 | 100 . 50 . Volleys Fired 128 | 5 37 12 74 Largest 2 | 2 2 2 2 Hottest 136 | 40 120 120 136 Shots Fired 248 | 10 74 24 140 Gun 40 | 10 12 . 18 Cannon 208 | . 62 24 122 Launcher . | . . . . Special . | . . . . Kinetic 22 | 10 12 . . Thermal 191 | . 62 24 105 Explosive . | . . . . Electromagnetic 35 | . . . 35 Robot Hit Streak 15 | 3 13 5 15 Robot Miss Streak 7 | 2 2 7 3 Penetration Max . | . . . . Secondary Targets 1 | . . . 1 Max Gunslinging Chain 1 | . . . 1 Shots Hit Robots 161 | 6 49 11 95 Core Hits 67 | 3 18 5 41 Critical Kills 2 | . 2 . . Critical Parts Destroyed . | . . . . Critical Strikes 2 | . 2 . . Meltdown 1 | . 1 . . Destroy 1 | . 1 . . Melee Attacks . | . . . . Impact . | . . . . Slashing . | . . . . Piercing . | . . . . Sneak Attacks . | . . . . Combat Hostiles . | . . . . Follow-up Attacks . | . . . . Damage Inflicted 3269 | 88 889 209 2083 Guns 399 | 88 80 . 231 Cannons 2606 | . 773 209 1624 Explosions 228 | . . . 228 Melee . | . . . . Ramming 36 | . 36 . . Kinetic 168 | 88 80 . . Thermal 2528 | . 773 209 1546 Explosive . | . . . . Electromagnetic 537 | . . . 537 Impact . | . . . . Slashing . | . . . . Piercing . | . . . . Highest Corruption 7 | . . . 7 Average Corruption 6 | . . . 6 Corruption Purged . | . . . . Corruption Blocked . | . . . . Effects 32 | . . . 32 Message Errors 8 | . . . 8 Matter Fused 9 | . . . 9 Heat Flow Errors 1 | . . . 1 Energy Discharges 4 | . . . 4 Data Loss (minor) 4 | . . . 4 Data Loss (major) 1 | . . . 1 Alerts 1 | . . . 1 Weapon Failures 4 | . . . 4 Overload Shots . | . . . . Overflow Damage 41 | . 19 15 7 Projectiles 35 | . 19 15 1 Explosions 6 | . . . 6 Melee . | . . . . Knockbacks 1 | . 1 . . Impact 1 | . 1 . . Kinetic . | . . . . Secondary . | . . . . Self-Inflicted Damage 70 | . . . 70 Shots 2 | . . . 2 Rammed . | . . . . Targets Rammed 4 | . 4 . . Kicked 4 | . 4 . . Crushed . | . . . . Highest Temperature 522 | . 394 182 522 Average Temperature 127 | . 111 79 143 Received Heat Transfer 759 | . 183 . 576 Effects 9 | . 4 . 5 Shutdowns 4 | . 1 . 3 Energy Bleed 2 | . 1 . 1 Matter Decay 1 | . 1 . . Short Circuit 1 | . 1 . . Damage (minor) 1 | . . . 1 Siege Activations . | . . . . Robots Corrupted 1 | . . . 1 Combat Hostiles 1 | . . . 1 Parts Fried 3 | . . . 3 Impact Corruptions . | . . . . Robots Melted 4 | . 2 . 2 Combat Hostiles 4 | . 2 . 2 Parts Melted 13 | . 5 1 7 Heat Transferred 4962 | . 1628 444 2890 Parts Sabotaged . | . . . . Parts Stolen . | . . . . Parts Stripped . | . . . . Power Chain Reactions 2 | . . . 2 Alert | -11 -10 -10 -9 ------- Run | Yrd Mat Min Mat Peak Influence 399 | 10 246 158 399 Initial 61 | . 6 18 61 Average 137 | 4 121 55 181 Maximum Alert Level 1 | . 1 . 1 Low Security (%) 72 | 100 83 100 54 Level 1 27 | . 16 . 45 Level 2 . | . . . . Level 3 . | . . . . Level 4 . | . . . . Level 5 . | . . . . High Security . | . . . . Max Security . | . . . . Squads Dispatched 5 | . 1 . 4 Investigation 3 | . 1 . 2 Extermination . | . . . . Reinforcement 2 | . . . 2 Assault . | . . . . Garrison . | . . . . Intercept . | . . . . Searches Triggered . | . . . . Construction Impeded 1 | . . . 1 Haulers Reinforced . | . . . . Active Scanning Responses . | . . . . Cargo Convoy Interrupts . | . . . . Stealth | -11 -10 -10 -9 --------- Run | Yrd Mat Min Mat Distress Signals 3 | . . . 3 Communications Jammed . | . . . . Distress Signals . | . . . . Times Spotted 54 | . 19 6 29 Peak Tracking Total 6 | . 3 3 6 Tactical Retreats 1 | . 1 . . Traps | -11 -10 -10 -9 ------- Run | Yrd Mat Min Mat Traps Triggered 2 | . 1 . 1 Indirectly . | . . . . Trap Hack Attempts . | . . . . Triggered . | . . . . Disarmed . | . . . . Reprogrammed . | . . . . Reused . | . . . . Traps Extracted . | . . . . Installed . | . . . . Triggered . | . . . . Machines | -11 -10 -10 -9 ---------- Run | Yrd Mat Min Mat Machines Disabled 4 | . . . 4 Max in Single Turn 1 | . . . 1 Machines Repaired . | . . . . Machines Dismantled . | . . . . Machines Sabotaged . | . . . . Overloaded Fab Kills . | . . . . Hacking | -11 -10 -10 -9 --------- Run | Yrd Mat Min Mat Machines Accessed 12 | . 8 . 4 Terminals 11 | . 8 . 3 Fabricators . | . . . . Repair Stations 1 | . . . 1 Recycling Units . | . . . . Scanalyzers . | . . . . Garrison Access . | . . . . Total Hacks 40 | . 22 . 18 Successful 21 | . 11 . 10 Failed 19 | . 11 . 8 Catastrophic 1 | . 1 . . Database Lockouts . | . . . . Manual 33 | . 22 . 11 Terminals 33 | . 22 . 11 Fabricators . | . . . . Repair Stations 7 | . . . 7 Recycling Units . | . . . . Scanalyzers . | . . . . Garrison Access . | . . . . Terminal Hacks 3 | . 3 . . Emergency Access Points 1 | . 1 . . Terminal Index 2 | . 2 . . Fabricator Hacks . | . . . . Repair Station Hacks 6 | . . . 6 Scan Component 3 | . . . 3 Repair 3 | . . . 3 Recycling Unit Hacks . | . . . . Scanalyzer . | . . . . Garrison Access Hacks . | . . . . Unauthorized Hacks 12 | . 8 . 4 Terminals 12 | . 8 . 4 Assimilate 1 | . 1 . . Botnet 9 | . 6 . 3 Operators 2 | . 1 . 1 Fabricators . | . . . . Repair Stations . | . . . . Recycling Units . | . . . . Scanalyzers . | . . . . Garrison Access . | . . . . Data Cores Recovered . | . . . . Used . | . . . . Hacking Detections 11 | . 7 . 4 Full Trace Events 4 | . 2 . 2 Feedback Events . | . . . . Feedback Blocked . | . . . . Robot Schematics Acquired . | . . . . Robots Built . | . . . . Authchips . | . . . . Time . | . . . . Total Robot Build Rating . | . . . . Part Schematics Acquired . | . . . . Parts Built . | . . . . Authchips . | . . . . Time . | . . . . Total Part Build Rating . | . . . . Parts Repaired 3 | . . . 3 Time 78 | . . . 78 Parts Recycled . | . . . . Recycled Matter . | . . . . Retrieved Matter . | . . . . Retrieved Components . | . . . . Parts Scanalyzed . | . . . . Part Schematics Acquired . | . . . . Parts Damaged . | . . . . Bothacking | -11 -10 -10 -9 ------------ Run | Yrd Mat Min Mat Used RIF Installer . | . . . . Robots Hacked . | . . . . Non-combat . | . . . . Combat . | . . . . Robot Hacks Applied . | . . . . Relay Couplers Released . | . . . . Fabnet Peak Effective % . | . . . . Robots Rewired . | . . . . Allies Hacked . | . . . . Hacks Repelled . | . . . . Allies | -11 -10 -10 -9 -------- Run | Yrd Mat Min Mat Total Allies 1 | . 1 . . Largest Group 1 | . 1 1 1 Highest-Rated Group 10 | . 10 10 10 Highest-Rated Ally 10 | . 10 10 10 Total Orders . | . . . . Ally Attacks . | . . . . Total Damage . | . . . . Kills . | . . . . Allies Corrupted . | . . . . Allies Melted . | . . . . Intel | -11 -10 -10 -9 ------- Run | Yrd Mat Min Mat Robot Analysis Total . | . . . . Derelict Logs Recovered 1 | . . 1 . Drone Launches . | . . . . Drone Recoveries . | . . . . Exploration | -11 -10 -10 -9 ------------- Run | Yrd Mat Min Mat Turns Passed 2857 | 127 1255 224 1251 Spaces Moved 1510 | 90 827 154 439 Core 16 | 15 . . 1 Treads . | . . . . Legs 1494 | 75 827 154 438 Wheels . | . . . . Hover . | . . . . Flight . | . . . . Fastest Speed 50 | 50 120 120 120 Average Speed 137 | 108 120 120 182 Slowest Speed 350 | 120 190 120 350 Overloaded Moves . | . . . . Propulsion Burnouts . | . . . . Robots Hopped . | . . . . Cave-ins Triggered . | . . . . Exploration Rate (%) 49 | 5 96 52 45 Regions Visited 3 Branch Regions 1 Pre-discovered Areas . | . . . . Known Exits Taken . | . . . . Unknown Exits Taken 3 | 1 1 1 . Scrap Searched 1 | . . 1 . Spaces Dug . | . . . . Terrain Destroyed 5 | . . . 5 Melee . | . . . . Projectile . | . . . . AOE 5 | . . . 5 Terrain Rammed . | . . . . Walls Destroyed . | . . . . Machines Disabled . | . . . . Actions | -11 -10 -10 -9 --------- Run | Yrd Mat Min Mat Total 2042 | 109 1018 169 746 Wait 274 | . 109 2 163 Move 1507 | 89 826 153 439 Hop . | . . . . Pick Up 38 | 9 15 . 14 Fast Attach 16 | 1 2 . 13 Attach 10 | 5 1 . 4 Detach 3 | . 1 . 2 Swap 22 | . 8 1 13 Drop 40 | . 15 1 24 Fire 128 | 5 37 12 74 Melee . | . . . . Ram . | . . . . Kick 4 | . 4 . . Crush . | . . . . Escape Stasis . | . . . . Rewire . | . . . . Trap . | . . . . Miscellaneous . | . . . . Route ------- -11/Scrapyard -10/Materials (discovered 4 exits: *Mat x2 / [*Min x2]) -10/Mines -9/Materials (discovered 4 exits: [*Mat] / [*Min] / [*Sto x2]) History --------- Turn | Location | Event 11 | -11/Scrapyard | Discovered new exit (range 13) 128 | -11/Scrapyard | Entered Materials 198 | -10/Materials | Discovered new exit (range 8) 302 | -10/Materials | Build established: Mutant 393 | -10/Materials | Discovered new exit (range 6) 688 | -10/Materials | Discovered new exit (range 7) 1146 | -10/Materials | Discovered new exit (range 14) 1383 | -10/Materials | Entered Mines 1383 | -10/Mines | Accompanied by 1 ally 1490 | -10/Mines | Learned Materials non-interactive machine intel 1583 | -10/Mines | Discovered new exit (range 15) 1607 | -10/Mines | Entered Materials 1607 | -9/Materials | Accompanied by 1 ally 1607 | -9/Materials | Evolved 2 slots: Utility x2 1608 | -9/Materials | Loaded intel: 30 non-interactive machine locations 1669 | -9/Materials | Repaired Beam Cannon 1696 | -9/Materials | Repaired Beam Cannon 1724 | -9/Materials | Repaired Sensor Array 1799 | -9/Materials | Discovered new exit (range 5) 1994 | -9/Materials | Lost 4 parts (2n2u) 2163 | -9/Materials | Discovered new exit (range 8) 2165 | -9/Materials | Discovered new exit (range 15) 2457 | -9/Materials | Discovered new exit (range 12) 2858 | -9/Materials | Self-destructed Last Messages --------------- 02849_ Overheating: Energy bleed (-17). 02849_ U-05 Engineer builds a Wall. 02850_ Acquired 20 matter. 02850_ K-01 Serf collects debris. 02851_ System corrupted: Component data lost. 02851_ Chain reaction triggered in Lgt. Ion Engine. 02851_ R-06 Scavenger destroyed. 02851_ Recycling Unit disabled. 02851_ Aluminum Leg tumbles out of recycling unit. 02851_ Adv. Weight Redist. System tumbles out of recycling unit. 02851_ Wheel tumbles out of recycling unit. 02851_ Imp. EM Shotgun destroyed. 02851_ Destroyed Imp. EM Shotgun. 02851_ Aluminum Leg destroyed. 02851_ Destroyed Aluminum Leg. 02853_ ALERT: Construction progress impeded, dispatching reinforcements to local area. 02853_ K-01 Serf collects debris. 02856_ U-05 Engineer lays Concrete. 02857_ K-01 Serf collects debris. Map ----- +----------------------------------------------------+ | ?????????????????????????????????????????????""""" | | ?????????????????????????????????????????????""""" | | ?????????????????????????????????????????????""""" | | ?????????????????????????????????????????????????? | | ?????????????????????????????????????????????????? | | ?????????????????????????????????????????????????? | | ?????????????????????????????????????????????????? | | "????????????????????????????????????????????????? | | "??????????????????????????????####??????????????? | | "?????????????????????????????? #??????????????? | | ?????????????????????????#??""" #??????????????? | | ?????????????????????????# """ #??????????????? | | ?????????????????????????# """ #???????"""????? | | ??????????????##?????????# #???????"""????? | | ?????????????## ########?# """ #???????"""????? | | ?????????????# !%! #?# """ #??????????????? | | ?????????????#o = #?? """ #??????????????? | | ?????????????# #???? ????????????????? | | ?????????????# ] #######+################ ? | | ?????????????# ] # [ ^ ? | | ????????"""??# ]! # [ ? | | ????????"""??# ! + [[ ? | | ????????"""??#[% # """"" ?? | | ?????????????#+######### ! w """"" | | ??????????#### #####;;#]== k" a """"" | | ???????# *=%%%@ =" | | ???????# !!%=!!%= u | | ???????# [%[=[][ u | | ????????# ##########*!; %%########## ##### | | ??????????????????!=%## #?????#### ##??????? | | ???????????????? [!# #?????#" #??????? | | ?????????????? """?# !!!!#?????#"" #??????? | | ????????????? """?#!!!!!!#?????#|| #??????? | | ????????????? """?########?????#"" < #??????? | | ????????????# ???"""??????????????#|| #??????? | | ?????????????????"""??????????????#"" #??##### | | ??????????????????????????????????#" #??# | | ??????????????????????????????????#### ##??# | | ?????????????????????????????????????# ##### | | ?????????????????????????????????????# | | ?????????????????????????????????????# % | | ?????????????????????????????????##### """ ]= | | ?????????????????????????????????# """ == | | ?????????????????????????????????# """ | | ?????????????????????????????????# ""% | | ?????????????????????????????????# | | ?????????????????????????????????# | | ?????????????????????????????????# """ ]]! | | ?????????????????????????????????# """ ]! | | ?????????????????????????????????# """ ]! | +----------------------------------------------------+ Best States ------------- Heat Dissipation 38 Energy Generation 14 Energy Capacity 280 Matter Stores 300 Matter Capacity 300 Sight Range 16 Robot Scan Range 14 Terrain Scan Density 10 Additional Mass Support 9 Armor Coverage 150 Evasion (%) 55 Item Schematics ----------------- None Robot Schematics ------------------ None Fabricated ------------ Nothing Alien Tech Used ----------------- None Achievements -------------- None Challenges ------------ None Game ------ Seed MassMomentumStorm Manual? 0 Play Time 00:25:03 Cumulative 29.4 hours Start 2024.06.06 @ 15:57:10 End 2024.06.06 @ 16:26:12 Sessions 1 Manual Loads 0 Difficulty Rogue Special Mode None Game No. 63 Rogue 63 Adventurer 0 Explorer 0 Win Type - Total 0 Types 0/0/0/0/0/0/0/0/0 Lore% 21 Gallery% 27 Achievement% 22 Wizard Run 0 Options --------- Layout 0 ASCII 0 Keyboard 0 Movement Mouse Keybinds 0 Fullscreen 2 Font 18/Terminus Map View 76x50 Zoom Use 0% Tactical HUD 1 Map Filters NONE Filters NONE Steam 1 RUN: af27b152-35d9-40ed-91b5-5b8c2f23e1ac